[Event "Late-Titled-Tuesday-Blitz-November-28-2023"]
[Site "Chess.com"]
[Date "2023.11.28"]
[Round "1"]
[White "jinxy2009"]
[Black "karinachess1"]
[Result "0-1"]
[WhiteElo "2277"]
[BlackElo "2598"]
[TimeControl "180+1"]
[EndTime "14:06:24 PST"]
[Termination "karinachess1 won by resignation"]

1. e4 {[%clk 0:02:58]} 1... c5 {[%clk 0:03:00.1]} 2. Nf3 {[%clk 0:02:55.7]} 2...
a6 {[%clk 0:03:00.4]} 3. c4 {[%clk 0:02:54.1]} 3... Nc6 {[%clk 0:02:58.8]} 4. d4
{[%clk 0:02:53.5]} 4... cxd4 {[%clk 0:02:59]} 5. Nxd4 {[%clk 0:02:54.4]} 5...
Nf6 {[%clk 0:02:59.6]} 6. Nc3 {[%clk 0:02:54]} 6... e5 {[%clk 0:03:00]} 7. Nc2
{[%clk 0:02:51.1]} 7... Bc5 {[%clk 0:02:58.2]} 8. Be2 {[%clk 0:02:36]} 8... h6
{[%clk 0:02:58.1]} 9. Be3 {[%clk 0:02:34.9]} 9... Be7 {[%clk 0:02:47.1]} 10. O-O
{[%clk 0:02:24.7]} 10... d6 {[%clk 0:02:45.4]} 11. f3 {[%clk 0:02:03.9]} 11...
O-O {[%clk 0:02:45]} 12. Qd2 {[%clk 0:02:00.2]} 12... Be6 {[%clk 0:02:45.1]} 13.
Rfd1 {[%clk 0:01:58.2]} 13... Rc8 {[%clk 0:02:44.5]} 14. Rac1 {[%clk 0:01:38]}
14... Nb8 {[%clk 0:02:42]} 15. Nd5 {[%clk 0:01:33.6]} 15... Bxd5 {[%clk
0:02:41.1]} 16. cxd5 {[%clk 0:01:34.5]} 16... Nbd7 {[%clk 0:02:38]} 17. b4
{[%clk 0:01:33.5]} 17... Nh5 {[%clk 0:02:36.2]} 18. Bf1 {[%clk 0:01:05.5]} 18...
Bg5 {[%clk 0:02:36]} 19. a4 {[%clk 0:00:59.8]} 19... Nb6 {[%clk 0:02:24.2]} 20.
Bxg5 {[%clk 0:00:50.4]} 20... hxg5 {[%clk 0:02:24.1]} 21. a5 {[%clk 0:00:45.1]}
21... Nc4 {[%clk 0:02:24.2]} 22. Qf2 {[%clk 0:00:42.9]} 22... Nb2 {[%clk
0:02:09]} 23. Re1 {[%clk 0:00:32.8]} 23... Nf4 {[%clk 0:02:09.1]} 24. Qe3 {[%clk
0:00:21.6]} 24... Nc4 {[%clk 0:01:57.2]} 25. Qf2 {[%clk 0:00:19.8]} 25... Qf6
{[%clk 0:01:53.3]} 26. Ne3 {[%clk 0:00:19.4]} 26... Nxe3 {[%clk 0:01:51.2]} 27.
Qxe3 {[%clk 0:00:17.6]} 27... Qh6 {[%clk 0:01:48]} 28. h3 {[%clk 0:00:16.6]}
28... g4 {[%clk 0:01:43.5]} 29. fxg4 {[%clk 0:00:13.9]} 29... Ne2+ {[%clk
0:01:40.8]} 30. Qxe2 {[%clk 0:00:05.8]} 30... Rxc1 {[%clk 0:01:39.9]} 31. Rxc1
{[%clk 0:00:06.7]} 31... Qxc1 {[%clk 0:01:40]} 32. Kh2 {[%clk 0:00:07.1]} 32...
Rc8 {[%clk 0:01:37.9]} 33. g5 {[%clk 0:00:06]} 33... Qxg5 {[%clk 0:01:34.6]} 34.
Qf3 {[%clk 0:00:05.9]} 34... Rc2 {[%clk 0:01:32]} 35. b5 {[%clk 0:00:05.6]}
35... axb5 {[%clk 0:01:27.5]} 36. Bxb5 {[%clk 0:00:05.5]} 36... Rc5 {[%clk
0:01:19.1]} 37. Be2 {[%clk 0:00:03.4]} 37... Rxa5 {[%clk 0:01:16.9]} 38. Qc3
{[%clk 0:00:03.7]} 38... Rc5 {[%clk 0:01:16.2]} 39. Qb3 {[%clk 0:00:03.2]} 39...
Qf4+ {[%clk 0:01:16.1]} 40. Kg1 {[%clk 0:00:03.5]} 40... Rc1+ {[%clk 0:01:15.3]}
41. Bd1 {[%clk 0:00:04]} 41... Qd2 {[%clk 0:01:13.8]} 0-1

[Event "Late-Titled-Tuesday-Blitz-November-28-2023"]
[Site "Chess.com"]
[Date "2023.11.28"]
[Round "1"]
[White "2Killer2"]
[Black "Fernando-Freire"]
[Result "1-0"]
[WhiteElo "2412"]
[BlackElo "2626"]
[TimeControl "180+1"]
[EndTime "14:06:30 PST"]
[Termination "2Killer2 won by checkmate"]

1. d4 {[%clk 0:02:58.1]} 1... Nf6 {[%clk 0:02:58.7]} 2. Nf3 {[%clk 0:02:58]}
2... g6 {[%clk 0:02:58.2]} 3. e3 {[%clk 0:02:58.9]} 3... Bg7 {[%clk 0:02:57.3]}
4. Be2 {[%clk 0:02:59.3]} 4... d6 {[%clk 0:02:58]} 5. c4 {[%clk 0:02:59.4]} 5...
O-O {[%clk 0:02:58.9]} 6. Nc3 {[%clk 0:02:59]} 6... Nc6 {[%clk 0:02:57.2]} 7.
O-O {[%clk 0:02:59.3]} 7... e5 {[%clk 0:02:56.6]} 8. Qc2 {[%clk 0:02:52]} 8...
Bf5 {[%clk 0:02:53.5]} 9. Qb3 {[%clk 0:02:29.4]} 9... exd4 {[%clk 0:02:50]} 10.
exd4 {[%clk 0:02:27.5]} 10... Rb8 {[%clk 0:02:22.4]} 11. h3 {[%clk 0:02:27]}
11... Re8 {[%clk 0:02:21.9]} 12. Be3 {[%clk 0:02:26.7]} 12... Ne4 {[%clk
0:02:20.2]} 13. Nxe4 {[%clk 0:02:25.8]} 13... Bxe4 {[%clk 0:02:21.1]} 14. Rfd1
{[%clk 0:02:21.7]} 14... a6 {[%clk 0:02:14.6]} 15. d5 {[%clk 0:02:00.7]} 15...
Ne5 {[%clk 0:02:11]} 16. Nxe5 {[%clk 0:01:59.9]} 16... Bxe5 {[%clk 0:02:11.6]}
17. Bf1 {[%clk 0:01:58.5]} 17... Qf6 {[%clk 0:02:05.4]} 18. Rd2 {[%clk
0:01:53.6]} 18... c5 {[%clk 0:02:00.1]} 19. a4 {[%clk 0:01:48.8]} 19... Bf5
{[%clk 0:01:09.3]} 20. Re1 {[%clk 0:01:45.5]} 20... g5 {[%clk 0:01:06]} 21. Bd3
{[%clk 0:01:42.6]} 21... Qg6 {[%clk 0:01:04.6]} 22. Bxf5 {[%clk 0:01:41.9]}
22... Qxf5 {[%clk 0:01:05.5]} 23. Qc2 {[%clk 0:01:39.6]} 23... Qxc2 {[%clk
0:01:03.4]} 24. Rxc2 {[%clk 0:01:40.2]} 24... b5 {[%clk 0:01:01]} 25. axb5
{[%clk 0:01:38.1]} 25... axb5 {[%clk 0:01:01.9]} 26. Bxg5 {[%clk 0:01:35]} 26...
Bh2+ {[%clk 0:01:01.3]} 27. Kxh2 {[%clk 0:01:35.6]} 27... Rxe1 {[%clk
0:01:01.7]} 28. Bf4 {[%clk 0:01:35.9]} 28... Rb6 {[%clk 0:00:57.1]} 29. cxb5
{[%clk 0:01:24.6]} 29... Kf8 {[%clk 0:00:55.8]} 30. b4 {[%clk 0:01:23.3]} 30...
cxb4 {[%clk 0:00:51.6]} 31. Rc6 {[%clk 0:01:23.3]} 31... Rxb5 {[%clk 0:00:51.7]}
32. Bxd6+ {[%clk 0:01:23.3]} 32... Kg7 {[%clk 0:00:51.8]} 33. Bc5 {[%clk
0:01:10.1]} 33... Rd1 {[%clk 0:00:48.4]} 34. d6 {[%clk 0:01:06.7]} 34... b3
{[%clk 0:00:48.8]} 35. Be3 {[%clk 0:00:42.3]} 35... b2 {[%clk 0:00:45.4]} 36. d7
{[%clk 0:00:42.7]} 36... b1=Q {[%clk 0:00:43.8]} 37. Bh6+ {[%clk 0:00:42]} 37...
Kg8 {[%clk 0:00:35.1]} 38. Rc8# {[%clk 0:00:41.5]} 1-0

[Event "Late-Titled-Tuesday-Blitz-November-28-2023"]
[Site "Chess.com"]
[Date "2023.11.28"]
[Round "1"]
[White "TheMagician"]
[Black "Squirlolz"]
[Result "1/2-1/2"]
[WhiteElo "2308"]
[BlackElo "2598"]
[TimeControl "180+1"]
[EndTime "14:06:33 PST"]
[Termination "Game drawn by agreement"]

1. d4 {[%clk 0:02:53.2]} 1... Nf6 {[%clk 0:02:59.9]} 2. c4 {[%clk 0:02:50]} 2...
c5 {[%clk 0:03:00.1]} 3. d5 {[%clk 0:02:49.9]} 3... e6 {[%clk 0:03:00.5]} 4. Nc3
{[%clk 0:02:49.1]} 4... exd5 {[%clk 0:03:01.1]} 5. cxd5 {[%clk 0:02:49.1]} 5...
d6 {[%clk 0:03:02]} 6. e4 {[%clk 0:02:49]} 6... g6 {[%clk 0:03:02.7]} 7. Bb5+
{[%clk 0:02:48.8]} 7... Nbd7 {[%clk 0:03:01.8]} 8. a4 {[%clk 0:02:48.7]} 8...
Bg7 {[%clk 0:03:01.9]} 9. Bf4 {[%clk 0:02:46.7]} 9... Qe7 {[%clk 0:02:49.8]} 10.
f3 {[%clk 0:02:25.4]} 10... O-O {[%clk 0:02:38.4]} 11. Nge2 {[%clk 0:02:23.7]}
11... Ne5 {[%clk 0:02:38.7]} 12. a5 {[%clk 0:02:18.2]} 12... Bd7 {[%clk
0:02:12.1]} 13. Bxd7 {[%clk 0:02:10.3]} 13... Nfxd7 {[%clk 0:02:05.8]} 14. a6
{[%clk 0:02:04.4]} 14... Rab8 {[%clk 0:01:58.1]} 15. O-O {[%clk 0:01:56.8]}
15... bxa6 {[%clk 0:01:55.2]} 16. Rxa6 {[%clk 0:01:56.3]} 16... Rxb2 {[%clk
0:01:48.9]} 17. Rxa7 {[%clk 0:01:49.2]} 17... Rfb8 {[%clk 0:01:48.5]} 18. Qa4
{[%clk 0:01:41.8]} 18... Qd8 {[%clk 0:01:46.3]} 19. Bc1 {[%clk 0:01:31.4]} 19...
R2b4 {[%clk 0:01:43.2]} 20. Qa5 {[%clk 0:01:20.2]} 20... Nb6 {[%clk 0:01:27.2]}
21. Qa2 {[%clk 0:00:59.4]} 21... Nbc4 {[%clk 0:01:21.3]} 22. h3 {[%clk
0:00:57.8]} 22... Qb6 {[%clk 0:01:19.9]} 23. Ra6 {[%clk 0:00:55.8]} 23... Qc7
{[%clk 0:01:12.6]} 24. Kh1 {[%clk 0:00:45]} 24... Nd3 {[%clk 0:01:06.9]} 25. Ra7
{[%clk 0:00:33.1]} 25... R8b7 {[%clk 0:00:51.1]} 26. Ra8+ {[%clk 0:00:29.5]}
26... Rb8 {[%clk 0:00:51.6]} 27. Ra7 {[%clk 0:00:29.1]} 27... Qd8 {[%clk
0:00:50.8]} 28. Ba3 {[%clk 0:00:13.2]} 28... Nxa3 {[%clk 0:00:45.9]} 29. Rxa3
{[%clk 0:00:13.2]} 29... Rb3 {[%clk 0:00:46.7]} 30. Rxb3 {[%clk 0:00:13.2]}
1/2-1/2

[Event "Late-Titled-Tuesday-Blitz-November-28-2023"]
[Site "Chess.com"]
[Date "2023.11.28"]
[Round "1"]
[White "KejJaj"]
[Black "tgpgoat"]
[Result "1-0"]
[WhiteElo "2182"]
[BlackElo "2520"]
[TimeControl "180+1"]
[EndTime "14:06:33 PST"]
[Termination "KejJaj won by resignation"]

1. d4 {[%clk 0:03:00.9]} 1... Nf6 {[%clk 0:02:57.8]} 2. Bf4 {[%clk 0:03:01.4]}
2... d5 {[%clk 0:02:57.5]} 3. e3 {[%clk 0:03:01.4]} 3... c5 {[%clk 0:02:56.6]}
4. Nd2 {[%clk 0:02:58.1]} 4... Nc6 {[%clk 0:02:55.7]} 5. c3 {[%clk 0:02:57.8]}
5... e6 {[%clk 0:02:54]} 6. Ngf3 {[%clk 0:02:56.7]} 6... Bd6 {[%clk 0:02:53.6]}
7. Bg3 {[%clk 0:02:57.2]} 7... O-O {[%clk 0:02:52.9]} 8. Bd3 {[%clk 0:02:56.2]}
8... b6 {[%clk 0:02:50.8]} 9. e4 {[%clk 0:02:56]} 9... dxe4 {[%clk 0:02:50.4]}
10. Nxe4 {[%clk 0:02:56.9]} 10... Nxe4 {[%clk 0:02:50.4]} 11. Bxe4 {[%clk
0:02:57.8]} 11... Bb7 {[%clk 0:02:49.3]} 12. dxc5 {[%clk 0:02:57.8]} 12... Bxc5
{[%clk 0:02:49]} 13. Qa4 {[%clk 0:02:57.1]} 13... Rc8 {[%clk 0:02:37.1]} 14. Rd1
{[%clk 0:02:55]} 14... Qe7 {[%clk 0:02:35.3]} 15. O-O {[%clk 0:02:44.6]} 15...
a5 {[%clk 0:02:32.5]} 16. Bh4 {[%clk 0:02:30.7]} 16... f6 {[%clk 0:02:27.8]} 17.
h3 {[%clk 0:02:18.5]} 17... Rfd8 {[%clk 0:02:16.3]} 18. Bg3 {[%clk 0:01:59.2]}
18... Na7 {[%clk 0:02:04.3]} 19. Bxb7 {[%clk 0:01:48.7]} 19... Qxb7 {[%clk
0:02:05.2]} 20. Qb3 {[%clk 0:01:45.6]} 20... Qe7 {[%clk 0:01:54.7]} 21. Rxd8+
{[%clk 0:01:38]} 21... Rxd8 {[%clk 0:01:52.8]} 22. Rd1 {[%clk 0:01:38.3]} 22...
Rxd1+ {[%clk 0:01:52.1]} 23. Qxd1 {[%clk 0:01:39.2]} 23... e5 {[%clk 0:01:48.4]}
24. Qd5+ {[%clk 0:01:38]} 24... Qf7 {[%clk 0:01:28.6]} 25. Qa8+ {[%clk
0:01:34.6]} 25... Bf8 {[%clk 0:01:28.1]} 26. Nd2 {[%clk 0:01:19.6]} 26... Nb5
{[%clk 0:01:15]} 27. a4 {[%clk 0:01:16]} 27... Nd6 {[%clk 0:01:09.5]} 28. Qb8
{[%clk 0:01:13.1]} 28... Nf5 {[%clk 0:01:02.6]} 29. Qxb6 {[%clk 0:01:08.7]}
29... Nxg3 {[%clk 0:01:02.7]} 30. fxg3 {[%clk 0:01:09.6]} 30... Qd5 {[%clk
0:01:02.1]} 31. Nb3 {[%clk 0:00:48.3]} 31... h5 {[%clk 0:00:51.2]} 32. h4 {[%clk
0:00:43.7]} 32... Qd1+ {[%clk 0:00:46.1]} 33. Kh2 {[%clk 0:00:44.2]} 33... e4
{[%clk 0:00:45.5]} 34. Qe6+ {[%clk 0:00:42.7]} 34... Kh8 {[%clk 0:00:43]} 35.
Nxa5 {[%clk 0:00:42.2]} 35... Qd3 {[%clk 0:00:37.3]} 36. Nc4 {[%clk 0:00:38.9]}
36... Bc5 {[%clk 0:00:28.5]} 37. Qe8+ {[%clk 0:00:35.7]} 37... Kh7 {[%clk
0:00:28.2]} 38. Qxh5+ {[%clk 0:00:36.2]} 38... Kg8 {[%clk 0:00:29]} 39. Qxc5
{[%clk 0:00:36.1]} 39... e3 {[%clk 0:00:28.5]} 40. Nxe3 {[%clk 0:00:34.6]} 1-0

[Event "Late-Titled-Tuesday-Blitz-November-28-2023"]
[Site "Chess.com"]
[Date "2023.11.28"]
[Round "1"]
[White "Artem_Koval"]
[Black "Freeeeeeeeeeeeeeeeee"]
[Result "1-0"]
[WhiteElo "2526"]
[BlackElo "2083"]
[TimeControl "180+1"]
[EndTime "14:06:37 PST"]
[Termination "Artem_Koval won by resignation"]

1. e4 {[%clk 0:02:57.2]} 1... e5 {[%clk 0:01:50.3]} 2. d4 {[%clk 0:02:55.1]}
2... exd4 {[%clk 0:01:49.1]} 3. Bc4 {[%clk 0:02:55.6]} 3... Nf6 {[%clk
0:01:48.4]} 4. Nf3 {[%clk 0:02:55.9]} 4... Nc6 {[%clk 0:01:48.2]} 5. O-O {[%clk
0:02:54.8]} 5... Nxe4 {[%clk 0:01:45.9]} 6. Nc3 {[%clk 0:02:48.8]} 6... Nxc3
{[%clk 0:01:43.5]} 7. bxc3 {[%clk 0:02:45.3]} 7... Be7 {[%clk 0:01:43.2]} 8.
cxd4 {[%clk 0:02:44.3]} 8... d5 {[%clk 0:01:42.7]} 9. Bb5 {[%clk 0:02:40.8]}
9... O-O {[%clk 0:01:42.2]} 10. Bxc6 {[%clk 0:02:39.8]} 10... bxc6 {[%clk
0:01:43.1]} 11. Ne5 {[%clk 0:02:39.9]} 11... Bd7 {[%clk 0:01:30.7]} 12. Bf4
{[%clk 0:02:36.9]} 12... Bd6 {[%clk 0:01:31]} 13. Bg3 {[%clk 0:02:35.4]} 13...
f6 {[%clk 0:01:28.4]} 14. Nd3 {[%clk 0:02:33.3]} 14... Re8 {[%clk 0:01:22.3]}
15. Qd2 {[%clk 0:02:31.6]} 15... Bf5 {[%clk 0:01:20.8]} 16. Rab1 {[%clk
0:02:25.2]} 16... Qd7 {[%clk 0:01:17.3]} 17. Rb7 {[%clk 0:02:15.5]} 17... Reb8
{[%clk 0:01:04.1]} 18. Rfb1 {[%clk 0:02:12.3]} 18... Rxb7 {[%clk 0:01:02.5]} 19.
Rxb7 {[%clk 0:02:13.2]} 19... Qc8 {[%clk 0:00:56]} 20. Rb3 {[%clk 0:02:13.7]}
20... Rb8 {[%clk 0:00:54]} 21. Qc3 {[%clk 0:02:03.4]} 21... Rxb3 {[%clk
0:00:39.5]} 22. axb3 {[%clk 0:02:04.3]} 22... Qa6 {[%clk 0:00:34.9]} 23. Ne1
{[%clk 0:01:21.8]} 23... Qb6 {[%clk 0:00:16.9]} 24. Bxd6 {[%clk 0:01:06.3]}
24... cxd6 {[%clk 0:00:17.7]} 25. h3 {[%clk 0:01:06.2]} 25... a5 {[%clk
0:00:17]} 26. Qe3 {[%clk 0:00:57]} 26... Kf7 {[%clk 0:00:16.8]} 27. g4 {[%clk
0:00:54.3]} 27... Be4 {[%clk 0:00:16.5]} 28. f3 {[%clk 0:00:54.1]} 28... Bg6
{[%clk 0:00:16.8]} 29. Kf2 {[%clk 0:00:50.3]} 29... Qb4 {[%clk 0:00:16.7]} 30.
h4 {[%clk 0:00:42.3]} 30... h5 {[%clk 0:00:15.3]} 31. gxh5 {[%clk 0:00:34.7]}
31... Bxh5 {[%clk 0:00:15.4]} 32. Nd3 {[%clk 0:00:35.2]} 32... Qb7 {[%clk
0:00:12.2]} 33. Nf4 {[%clk 0:00:35]} 33... Bg6 {[%clk 0:00:11.4]} 34. Qe6+
{[%clk 0:00:35.4]} 1-0

[Event "Late-Titled-Tuesday-Blitz-November-28-2023"]
[Site "Chess.com"]
[Date "2023.11.28"]
[Round "1"]
[White "KNVB"]
[Black "KVAIDAN"]
[Result "1-0"]
[WhiteElo "2699"]
[BlackElo "2376"]
[TimeControl "180+1"]
[EndTime "14:06:38 PST"]
[Termination "KNVB won by checkmate"]

1. e4 {[%clk 0:03:00.9]} 1... e5 {[%clk 0:03:00.3]} 2. Nf3 {[%clk 0:03:01]} 2...
d5 {[%clk 0:03:00.7]} 3. d4 {[%clk 0:02:53.3]} 3... dxe4 {[%clk 0:02:59.7]} 4.
Nxe5 {[%clk 0:02:53.7]} 4... Bd6 {[%clk 0:03:00.1]} 5. Bf4 {[%clk 0:02:40.7]}
5... Nf6 {[%clk 0:02:56.4]} 6. Nc3 {[%clk 0:02:38.7]} 6... O-O {[%clk
0:02:54.9]} 7. Qd2 {[%clk 0:02:36.7]} 7... c5 {[%clk 0:02:52.8]} 8. O-O-O {[%clk
0:02:29.9]} 8... cxd4 {[%clk 0:02:48.5]} 9. Qxd4 {[%clk 0:02:29.8]} 9... Bxe5
{[%clk 0:02:48.9]} 10. Qxd8 {[%clk 0:02:23.3]} 10... Bxf4+ {[%clk 0:02:48.9]}
11. Kb1 {[%clk 0:02:24.1]} 11... Bg4 {[%clk 0:02:39.4]} 12. Qe7 {[%clk
0:00:36.6]} 12... Bxd1 {[%clk 0:02:23.8]} 13. Nxd1 {[%clk 0:00:36.7]} 13... Nc6
{[%clk 0:02:24.3]} 14. Qxb7 {[%clk 0:00:36.9]} 14... Nd4 {[%clk 0:02:19.2]} 15.
c3 {[%clk 0:00:23.4]} 15... Rab8 {[%clk 0:02:13.7]} 16. Qxa7 {[%clk 0:00:18.1]}
16... Ne6 {[%clk 0:02:11.1]} 17. g3 {[%clk 0:00:05]} 17... Bd6 {[%clk
0:02:08.4]} 18. Qe3 {[%clk 0:00:02.7]} 18... Bc5 {[%clk 0:02:05.9]} 19. Qc1
{[%clk 0:00:03.1]} 19... Nd5 {[%clk 0:02:01.7]} 20. Be2 {[%clk 0:00:03]} 20...
f5 {[%clk 0:01:52.5]} 21. Bc4 {[%clk 0:00:03]} 21... Rfd8 {[%clk 0:01:52.9]} 22.
Ne3 {[%clk 0:00:02.9]} 22... Bxe3 {[%clk 0:01:47.1]} 23. fxe3 {[%clk 0:00:03.6]}
23... Kf8 {[%clk 0:01:45.5]} 24. Rd1 {[%clk 0:00:03.7]} 24... Nec7 {[%clk
0:01:43.2]} 25. Rd4 {[%clk 0:00:02.7]} 25... Nb6 {[%clk 0:01:37.4]} 26. Rxd8+
{[%clk 0:00:02.2]} 26... Rxd8 {[%clk 0:01:38]} 27. Qf1 {[%clk 0:00:02.4]} 27...
g6 {[%clk 0:01:37.6]} 28. Kc2 {[%clk 0:00:02.2]} 28... Nd7 {[%clk 0:01:35.2]}
29. a4 {[%clk 0:00:02.4]} 29... Ne5 {[%clk 0:01:35.5]} 30. a5 {[%clk 0:00:02.5]}
30... Nf3 {[%clk 0:01:35.5]} 31. Qe2 {[%clk 0:00:01.6]} 31... Ke7 {[%clk
0:01:24.2]} 32. b4 {[%clk 0:00:02.1]} 32... Kf6 {[%clk 0:01:23.2]} 33. b5 {[%clk
0:00:02.4]} 33... Ke5 {[%clk 0:01:20.3]} 34. b6 {[%clk 0:00:02.7]} 34... Nd5
{[%clk 0:01:18.1]} 35. Bxd5 {[%clk 0:00:03.3]} 35... Rxd5 {[%clk 0:01:18.4]} 36.
b7 {[%clk 0:00:02.3]} 36... Rxa5 {[%clk 0:01:13.8]} 37. b8=Q+ {[%clk 0:00:02.5]}
37... Kf6 {[%clk 0:01:13.8]} 38. Qb6+ {[%clk 0:00:02.9]} 38... Kg5 {[%clk
0:01:13.1]} 39. Qxa5 {[%clk 0:00:03.8]} 39... h5 {[%clk 0:01:13.2]} 40. h4+
{[%clk 0:00:04.1]} 40... Kg4 {[%clk 0:01:13.4]} 41. Qb6 {[%clk 0:00:03.8]} 41...
g5 {[%clk 0:01:12.7]} 42. Qxf3+ {[%clk 0:00:03.4]} 42... exf3 {[%clk 0:01:11.9]}
43. hxg5 {[%clk 0:00:03.4]} 43... f2 {[%clk 0:01:10.9]} 44. Qb1 {[%clk
0:00:04.1]} 44... Kxg3 {[%clk 0:01:10.7]} 45. Qf1 {[%clk 0:00:04.1]} 45... h4
{[%clk 0:01:11]} 46. g6 {[%clk 0:00:05]} 46... h3 {[%clk 0:01:11.7]} 47. g7
{[%clk 0:00:05.3]} 47... Kf3 {[%clk 0:01:12.6]} 48. g8=Q {[%clk 0:00:05.2]}
48... h2 {[%clk 0:01:13.5]} 49. Qgg2+ {[%clk 0:00:05.5]} 49... Kxe3 {[%clk
0:01:14]} 50. Qfxf2# {[%clk 0:00:06.2]} 1-0

[Event "Late-Titled-Tuesday-Blitz-November-28-2023"]
[Site "Chess.com"]
[Date "2023.11.28"]
[Round "1"]
[White "Heinza9"]
[Black "DefiantChair"]
[Result "0-1"]
[WhiteElo "2320"]
[BlackElo "2613"]
[TimeControl "180+1"]
[EndTime "14:06:42 PST"]
[Termination "DefiantChair won on time"]

1. e4 {[%clk 0:02:26.4]} 1... c5 {[%clk 0:02:59.2]} 2. Nf3 {[%clk 0:02:25.8]}
2... d6 {[%clk 0:02:59.5]} 3. Bb5+ {[%clk 0:02:24.9]} 3... Nd7 {[%clk
0:02:58.9]} 4. O-O {[%clk 0:02:24.2]} 4... a6 {[%clk 0:02:59.1]} 5. Be2 {[%clk
0:02:24.1]} 5... Ngf6 {[%clk 0:02:58.8]} 6. d3 {[%clk 0:02:23.2]} 6... g6 {[%clk
0:02:58.5]} 7. h3 {[%clk 0:02:20.9]} 7... Bg7 {[%clk 0:02:57.1]} 8. c3 {[%clk
0:02:19.7]} 8... e5 {[%clk 0:02:56.6]} 9. Be3 {[%clk 0:02:18.9]} 9... O-O {[%clk
0:02:56.4]} 10. Nbd2 {[%clk 0:02:19.1]} 10... b5 {[%clk 0:02:56]} 11. d4 {[%clk
0:02:18.7]} 11... Bb7 {[%clk 0:02:55.8]} 12. d5 {[%clk 0:02:17.8]} 12... c4
{[%clk 0:02:55.1]} 13. a4 {[%clk 0:02:13.6]} 13... Rc8 {[%clk 0:02:52.9]} 14.
axb5 {[%clk 0:02:12.9]} 14... axb5 {[%clk 0:02:51.4]} 15. Ra7 {[%clk 0:02:11.8]}
15... Qc7 {[%clk 0:02:50.1]} 16. Qc2 {[%clk 0:01:55.9]} 16... Nc5 {[%clk
0:02:47.5]} 17. Bxc5 {[%clk 0:01:47.5]} 17... dxc5 {[%clk 0:02:47.8]} 18. Rfa1
{[%clk 0:01:40.2]} 18... Ne8 {[%clk 0:02:42]} 19. b3 {[%clk 0:01:19.9]} 19...
cxb3 {[%clk 0:02:41.8]} 20. Qxb3 {[%clk 0:01:20]} 20... Nd6 {[%clk 0:02:41.4]}
21. c4 {[%clk 0:01:09.7]} 21... b4 {[%clk 0:02:40.3]} 22. Ne1 {[%clk 0:01:01.2]}
22... f5 {[%clk 0:02:39.6]} 23. f3 {[%clk 0:00:57.9]} 23... f4 {[%clk
0:02:39.1]} 24. Nd3 {[%clk 0:00:56.5]} 24... Qe7 {[%clk 0:02:37.5]} 25. Bf1
{[%clk 0:00:49]} 25... Bf6 {[%clk 0:02:36.9]} 26. Qa4 {[%clk 0:00:44.8]} 26...
g5 {[%clk 0:02:32]} 27. Qa5 {[%clk 0:00:43.9]} 27... Nf7 {[%clk 0:02:28.7]} 28.
Qb6 {[%clk 0:00:41.3]} 28... Rc7 {[%clk 0:02:22.7]} 29. Nxc5 {[%clk 0:00:33.5]}
29... Rb8 {[%clk 0:02:14.9]} 30. Ne6 {[%clk 0:00:27.6]} 30... Rd7 {[%clk
0:02:13.7]} 31. c5 {[%clk 0:00:24]} 31... Qe8 {[%clk 0:02:09.4]} 32. c6 {[%clk
0:00:19]} 32... Bxc6 {[%clk 0:01:59.1]} 33. Qxc6 {[%clk 0:00:19.2]} 33... Rxa7
{[%clk 0:01:51.8]} 34. Rxa7 {[%clk 0:00:20.1]} 34... g4 {[%clk 0:01:42.7]} 35.
Qxe8+ {[%clk 0:00:16.7]} 35... Rxe8 {[%clk 0:01:43]} 36. hxg4 {[%clk 0:00:17]}
36... Nd6 {[%clk 0:01:39.7]} 37. Nc4 {[%clk 0:00:15.8]} 37... Nb5 {[%clk
0:01:38.8]} 38. Rb7 {[%clk 0:00:15.2]} 38... Nc3 {[%clk 0:01:36.9]} 39. Rxb4
{[%clk 0:00:13.4]} 39... Ra8 {[%clk 0:01:35.3]} 40. d6 {[%clk 0:00:11.4]} 40...
Ra1 {[%clk 0:01:34.2]} 41. d7 {[%clk 0:00:09.3]} 41... Rd1 {[%clk 0:01:30.9]}
42. Rb8+ {[%clk 0:00:07.7]} 42... Kf7 {[%clk 0:01:29.8]} 43. d8=Q {[%clk
0:00:06.8]} 43... Bxd8 {[%clk 0:01:28.9]} 44. Rxd8 {[%clk 0:00:05.7]} 44... Rc1
{[%clk 0:01:27]} 45. Nxe5+ {[%clk 0:00:05.7]} 45... Kxe6 {[%clk 0:01:26.7]} 46.
Re8+ {[%clk 0:00:04.3]} 46... Kf6 {[%clk 0:01:26.5]} 47. g5+ {[%clk 0:00:03.8]}
47... Kxg5 {[%clk 0:01:26]} 48. Nd3 {[%clk 0:00:03.8]} 48... Ra1 {[%clk
0:01:24.2]} 0-1